[Event "Titled Tuesday Blitz June 1 2021"]
[White "Navalgund, Niranjan"]
[Black "Makhnev, Denis"]
[WhiteFideId "5030854"]
[BlackFideId "13707647"]
[WhiteElo "2290"]
[BlackElo "2549"]
[Result "0-1"]
[Round "10"]
[TimeControl "180+1"]
[Date "2021.06.01"]
[WhiteClock "0:01:29"]
[BlackClock "0:01:35"]

1. e4 {[%clk 0:03:00]}  c6 {[%clk 0:02:59]} 2. Nc3 {[%clk 0:03:00]}  d5 {[%clk 0:03:00]} 3. Nf3 {[%clk 0:03:00]}  Bg4 {[%clk 0:03:00]} 4. h3 {[%clk 0:03:00]}  Bh5 {[%clk 0:03:00]} 5. g4 {[%clk 0:02:59]}  Bg6 {[%clk 0:03:00]} 6. exd5 {[%clk 0:03:00]}  cxd5 {[%clk 0:03:00]} 7. Bb5+ {[%clk 0:03:01]}  Nc6 {[%clk 0:03:00]} 8. Ne5 {[%clk 0:03:01]}  Rc8 {[%clk 0:02:59]} 9. d4 {[%clk 0:03:01]}  e6 {[%clk 0:02:59]} 10. h4 {[%clk 0:03:00]}  f6 {[%clk 0:02:58]} 11. Nxg6 {[%clk 0:03:00]}  hxg6 {[%clk 0:02:59]} 12. Qd3 {[%clk 0:03:00]}  Kf7 {[%clk 0:02:59]} 13. Bxc6 {[%clk 0:02:58]}  Rxc6 {[%clk 0:02:58]} 14. Bd2 {[%clk 0:02:58]}  Bb4 {[%clk 0:02:57]} 15. O-O-O {[%clk 0:02:58]}  Ne7 {[%clk 0:02:57]} 16. h5 {[%clk 0:02:55]}  gxh5 {[%clk 0:02:56]} 17. gxh5 {[%clk 0:02:56]}  Bxc3 {[%clk 0:02:50]} 18. Bxc3 {[%clk 0:02:52]}  Qc7 {[%clk 0:02:50]} 19. Rdg1 {[%clk 0:02:48]}  Qf4+ {[%clk 0:02:46]} 20. Kb1 {[%clk 0:02:47]}  Nf5 {[%clk 0:02:42]} 21. f3 {[%clk 0:02:37]}  Rhc8 {[%clk 0:02:29]} 22. Rg4 {[%clk 0:02:22]}  Qe3 {[%clk 0:02:27]} 23. Qxe3 {[%clk 0:02:17]}  Nxe3 {[%clk 0:02:27]} 24. Rg6 {[%clk 0:02:10]}  Rh8 {[%clk 0:02:23]} 25. Rg3 {[%clk 0:02:06]}  Nf5 {[%clk 0:02:21]} 26. Rgh3 {[%clk 0:02:06]}  Rc4 {[%clk 0:02:12]} 27. Rd1 {[%clk 0:01:59]}  Ke8 {[%clk 0:02:08]} 28. Rd3 {[%clk 0:01:58]}  g6 {[%clk 0:02:04]} 29. b3 {[%clk 0:01:58]}  Rc7 {[%clk 0:02:02]} 30. h6 {[%clk 0:01:53]}  Rxh6 {[%clk 0:01:59]} 31. Rxh6 {[%clk 0:01:53]}  Nxh6 {[%clk 0:02:00]} 32. Bd2 {[%clk 0:01:53]}  Nf5 {[%clk 0:01:59]} 33. Bf4 {[%clk 0:01:54]}  Rh7 {[%clk 0:01:55]} 34. Kb2 {[%clk 0:01:53]}  g5 {[%clk 0:01:54]} 35. Bb8 {[%clk 0:01:53]}  a6 {[%clk 0:01:51]} 36. c4 {[%clk 0:01:53]}  Ne7 {[%clk 0:01:47]} 37. Kc3 {[%clk 0:01:37]}  Rh3 {[%clk 0:01:44]} 38. Kb4 {[%clk 0:01:37]}  g4 {[%clk 0:01:41]} 39. cxd5 {[%clk 0:01:36]}  Nxd5+ {[%clk 0:01:39]} 40. Kc5 {[%clk 0:01:36]}  Rxf3 {[%clk 0:01:38]} 41. Rd1 {[%clk 0:01:36]}  Kd7 {[%clk 0:01:36]} 42. Rc1 {[%clk 0:01:32]}  g3 {[%clk 0:01:35]} 43. a4 {[%clk 0:01:29]}  g2 {[%clk 0:01:35]} 44. a5 {[%clk 0:01:29]} 0-1


[Site "https://www.chess.com"]

[Event "Titled Tuesday Blitz June 1 2021"]
[White "Peralta, Eduardo"]
[Black "Kosteniuk, Alexandra"]
[WhiteFideId "3700062"]
[BlackFideId "4128125"]
[WhiteElo "2205"]
[BlackElo "2521"]
[Result "0-1"]
[Round "10"]
[TimeControl "180+1"]
[Date "2021.06.01"]
[WhiteClock "0:00:04"]
[BlackClock "0:00:35"]

1. d4 {[%clk 0:03:00]}  Nf6 {[%clk 0:02:59]} 2. c4 {[%clk 0:02:58]}  e6 {[%clk 0:03:00]} 3. Nc3 {[%clk 0:02:57]}  Bb4 {[%clk 0:02:59]} 4. e3 {[%clk 0:02:57]}  b6 {[%clk 0:02:59]} 5. Bd3 {[%clk 0:02:56]}  Bb7 {[%clk 0:02:57]} 6. Ne2 {[%clk 0:02:48]}  Bxg2 {[%clk 0:02:56]} 7. Rg1 {[%clk 0:02:48]}  Bf3 {[%clk 0:02:54]} 8. Rxg7 {[%clk 0:02:48]}  Ng4 {[%clk 0:02:52]} 9. h3 {[%clk 0:02:26]}  f5 {[%clk 0:02:33]} 10. e4 {[%clk 0:01:26]}  Qf6 {[%clk 0:02:14]} 11. Rg5 {[%clk 0:00:50]}  h6 {[%clk 0:02:08]} 12. e5 {[%clk 0:00:43]}  Qf7 {[%clk 0:01:59]} 13. hxg4 {[%clk 0:00:42]}  hxg5 {[%clk 0:01:58]} 14. Bxg5 {[%clk 0:00:41]}  Rh1+ {[%clk 0:01:55]} 15. Kd2 {[%clk 0:00:41]}  Rxd1+ {[%clk 0:01:53]} 16. Rxd1 {[%clk 0:00:42]}  Nc6 {[%clk 0:01:34]} 17. gxf5 {[%clk 0:00:26]}  exf5 {[%clk 0:01:34]} 18. Ke3 {[%clk 0:00:22]}  Bxe2 {[%clk 0:00:56]} 19. Bxe2 {[%clk 0:00:22]}  Be7 {[%clk 0:00:55]} 20. Bf4 {[%clk 0:00:12]}  O-O-O {[%clk 0:00:53]} 21. Nd5 {[%clk 0:00:11]}  Rg8 {[%clk 0:00:48]} 22. Bf3 {[%clk 0:00:11]}  Bg5 {[%clk 0:00:44]} 23. b3 {[%clk 0:00:08]}  Bxf4+ {[%clk 0:00:44]} 24. Nxf4 {[%clk 0:00:09]}  Nd8 {[%clk 0:00:42]} 25. Rh1 {[%clk 0:00:08]}  Ne6 {[%clk 0:00:41]} 26. Nd5 {[%clk 0:00:08]}  f4+ {[%clk 0:00:40]} 27. Kd3 {[%clk 0:00:08]}  Ng5 {[%clk 0:00:39]} 28. Be4 {[%clk 0:00:02]}  Nxe4 {[%clk 0:00:39]} 29. Kxe4 {[%clk 0:00:02]}  Qg6+ {[%clk 0:00:37]} 30. Kxf4 {[%clk 0:00:03]}  Rf8+ {[%clk 0:00:34]} 31. Nf6 {[%clk 0:00:03]}  Rxf6+ {[%clk 0:00:34]} 32. exf6 {[%clk 0:00:04]}  Qxf6+ {[%clk 0:00:34]} 33. Ke3 {[%clk 0:00:04]}  Qe6+ {[%clk 0:00:35]} 34. Kd3 {[%clk 0:00:04]}  Qf5+ {[%clk 0:00:35]} 35. Kc3 {[%clk 0:00:04]}  Qf3+ {[%clk 0:00:35]} 0-1


[Site "https://www.chess.com"]

[Event "Titled Tuesday Blitz June 1 2021"]
[White "Potapova, Margarita"]
[Black "Fakhretdinova, Margarita"]
[WhiteFideId "14126869"]
[BlackFideId "24103667"]
[WhiteElo "2229"]
[BlackElo "2278"]
[Result "1-0"]
[Round "10"]
[TimeControl "180+1"]
[Date "2021.06.01"]
[WhiteClock "0:00:35"]
[BlackClock "0:00:01"]

1. d4 {[%clk 0:03:00]}  Nf6 {[%clk 0:02:59]} 2. c4 {[%clk 0:03:01]}  e6 {[%clk 0:02:59]} 3. Nc3 {[%clk 0:03:02]}  d5 {[%clk 0:03:00]} 4. Nf3 {[%clk 0:03:01]}  Be7 {[%clk 0:02:58]} 5. Bf4 {[%clk 0:03:02]}  Nbd7 {[%clk 0:02:56]} 6. e3 {[%clk 0:03:02]}  O-O {[%clk 0:02:53]} 7. c5 {[%clk 0:02:59]}  c6 {[%clk 0:02:41]} 8. h3 {[%clk 0:02:59]}  Re8 {[%clk 0:02:34]} 9. Be2 {[%clk 0:02:58]}  Bf8 {[%clk 0:02:31]} 10. b3 {[%clk 0:02:57]}  b6 {[%clk 0:02:29]} 11. b4 {[%clk 0:02:57]}  a5 {[%clk 0:02:29]} 12. a3 {[%clk 0:02:57]}  Ba6 {[%clk 0:02:19]} 13. O-O {[%clk 0:02:56]}  Qc8 {[%clk 0:02:07]} 14. Rc1 {[%clk 0:02:50]}  axb4 {[%clk 0:02:04]} 15. axb4 {[%clk 0:02:50]}  bxc5 {[%clk 0:02:03]} 16. bxc5 {[%clk 0:02:48]}  Bxe2 {[%clk 0:01:45]} 17. Qxe2 {[%clk 0:02:49]}  Qa6 {[%clk 0:01:42]} 18. Qd2 {[%clk 0:02:44]}  Be7 {[%clk 0:01:19]} 19. Qb2 {[%clk 0:02:42]}  Rec8 {[%clk 0:01:04]} 20. Bh2 {[%clk 0:02:41]}  Bd8 {[%clk 0:00:59]} 21. Rb1 {[%clk 0:02:24]}  Bc7 {[%clk 0:00:58]} 22. Bxc7 {[%clk 0:02:18]}  Rxc7 {[%clk 0:00:59]} 23. Ra1 {[%clk 0:02:17]}  Qc8 {[%clk 0:00:59]} 24. Rxa8 {[%clk 0:02:12]}  Qxa8 {[%clk 0:00:59]} 25. Rb1 {[%clk 0:02:09]}  Ra7 {[%clk 0:00:51]} 26. Qb4 {[%clk 0:02:03]}  Ne8 {[%clk 0:00:45]} 27. Qb2 {[%clk 0:01:59]}  Nc7 {[%clk 0:00:43]} 28. h4 {[%clk 0:01:53]}  h6 {[%clk 0:00:39]} 29. Qc2 {[%clk 0:01:40]}  Ra1 {[%clk 0:00:34]} 30. Qb2 {[%clk 0:01:37]}  Rxb1+ {[%clk 0:00:33]} 31. Qxb1 {[%clk 0:01:38]}  Qb8 {[%clk 0:00:20]} 32. Qa2 {[%clk 0:01:36]}  Nb5 {[%clk 0:00:17]} 33. Ne2 {[%clk 0:01:32]}  e5 {[%clk 0:00:16]} 34. dxe5 {[%clk 0:01:16]}  Nxc5 {[%clk 0:00:15]} 35. Ned4 {[%clk 0:01:12]}  Nxd4 {[%clk 0:00:11]} 36. Nxd4 {[%clk 0:01:09]}  Qxe5 {[%clk 0:00:10]} 37. Nxc6 {[%clk 0:01:08]}  Qe4 {[%clk 0:00:07]} 38. Qxd5 {[%clk 0:01:01]}  Qb1+ {[%clk 0:00:02]} 39. Kh2 {[%clk 0:00:59]}  Ne4 {[%clk 0:00:02]} 40. Ne7+ {[%clk 0:00:56]}  Kh7 {[%clk 0:00:02]} 41. Qf5+ {[%clk 0:00:55]}  Kh8 {[%clk 0:00:02]} 42. Qxf7 {[%clk 0:00:52]}  Qb8+ {[%clk 0:00:01]} 43. g3 {[%clk 0:00:51]}  Nf6 {[%clk 0:00:01]} 44. Nf5 {[%clk 0:00:35]}  Kh7 {[%clk 0:00:01]} 45. Qxg7# {[%clk 0:00:35]} 1-0


[Site "https://www.chess.com"]

[Event "Titled Tuesday Blitz June 1 2021"]
[White "Quintiliano Pinto, Renato R."]
[Black "Paravyan, David"]
[WhiteFideId "2117568"]
[BlackFideId "4194985"]
[WhiteElo "2439"]
[BlackElo "2562"]
[Result "0-1"]
[Round "10"]
[TimeControl "180+1"]
[Date "2021.06.01"]
[WhiteClock "0:00:06"]
[BlackClock "0:01:16"]

1. d4 {[%clk 0:03:00]}  Nf6 {[%clk 0:02:58]} 2. c4 {[%clk 0:03:01]}  g6 {[%clk 0:02:58]} 3. Nc3 {[%clk 0:03:01]}  Bg7 {[%clk 0:02:59]} 4. e4 {[%clk 0:03:02]}  d6 {[%clk 0:02:59]} 5. Nf3 {[%clk 0:03:02]}  O-O {[%clk 0:02:59]} 6. Be2 {[%clk 0:03:03]}  e5 {[%clk 0:02:58]} 7. O-O {[%clk 0:03:02]}  Bg4 {[%clk 0:02:58]} 8. Be3 {[%clk 0:02:53]}  Bxf3 {[%clk 0:02:53]} 9. Bxf3 {[%clk 0:02:54]}  exd4 {[%clk 0:02:53]} 10. Bxd4 {[%clk 0:02:55]}  Nc6 {[%clk 0:02:53]} 11. Be3 {[%clk 0:02:55]}  Re8 {[%clk 0:02:53]} 12. Qc2 {[%clk 0:02:52]}  Nd7 {[%clk 0:02:52]} 13. Rad1 {[%clk 0:02:49]}  Bxc3 {[%clk 0:02:52]} 14. Qxc3 {[%clk 0:02:48]}  Qf6 {[%clk 0:02:53]} 15. Qc2 {[%clk 0:02:26]}  Nc5 {[%clk 0:02:50]} 16. Rfe1 {[%clk 0:02:17]}  Re7 {[%clk 0:02:49]} 17. Qc1 {[%clk 0:01:49]}  Nxe4 {[%clk 0:02:42]} 18. Bxe4 {[%clk 0:01:49]}  Rxe4 {[%clk 0:02:41]} 19. Bg5 {[%clk 0:01:50]}  Qf5 {[%clk 0:02:26]} 20. Rxe4 {[%clk 0:01:48]}  Qxe4 {[%clk 0:02:27]} 21. Re1 {[%clk 0:01:49]}  Qf5 {[%clk 0:02:18]} 22. Bh6 {[%clk 0:01:36]}  f6 {[%clk 0:02:16]} 23. Qe3 {[%clk 0:01:26]}  Kf7 {[%clk 0:02:14]} 24. c5 {[%clk 0:01:17]}  d5 {[%clk 0:02:09]} 25. h3 {[%clk 0:00:50]}  g5 {[%clk 0:02:06]} 26. g4 {[%clk 0:00:39]}  Qe4 {[%clk 0:01:49]} 27. Qc3 {[%clk 0:00:19]}  Qc4 {[%clk 0:01:28]} 28. Qxc4 {[%clk 0:00:18]}  dxc4 {[%clk 0:01:29]} 29. f4 {[%clk 0:00:18]}  Nd4 {[%clk 0:01:17]} 30. Kf2 {[%clk 0:00:18]}  Kg6 {[%clk 0:01:17]} 31. fxg5 {[%clk 0:00:18]}  fxg5 {[%clk 0:01:18]} 32. Re4 {[%clk 0:00:05]}  Rd8 {[%clk 0:01:17]} 33. Bf8 {[%clk 0:00:06]}  Rxf8+ {[%clk 0:01:16]} 0-1


[Site "https://www.chess.com"]

[Event "Titled Tuesday Blitz June 1 2021"]
[White "Quintin Navarro, Alberto"]
[Black "Bacrot, Etienne"]
[WhiteFideId "2292688"]
[BlackFideId "605506"]
[WhiteElo "2625"]
[BlackElo "2749"]
[Result "0-1"]
[Round "10"]
[TimeControl "180+1"]
[Date "2021.06.01"]
[WhiteClock "0:00:33"]
[BlackClock "0:00:13"]

1. c4 {[%clk 0:03:00]}  e5 {[%clk 0:02:59]} 2. Nc3 {[%clk 0:03:00]}  Nc6 {[%clk 0:02:59]} 3. Nf3 {[%clk 0:02:59]}  g6 {[%clk 0:02:58]} 4. g3 {[%clk 0:02:59]}  Bg7 {[%clk 0:02:58]} 5. Bg2 {[%clk 0:02:59]}  Nf6 {[%clk 0:02:58]} 6. O-O {[%clk 0:02:58]}  O-O {[%clk 0:02:58]} 7. d3 {[%clk 0:02:58]}  d6 {[%clk 0:02:58]} 8. Rb1 {[%clk 0:02:59]}  a5 {[%clk 0:02:57]} 9. a3 {[%clk 0:02:58]}  Re8 {[%clk 0:02:46]} 10. Nd2 {[%clk 0:02:55]}  Nd4 {[%clk 0:02:43]} 11. e3 {[%clk 0:02:54]}  Ne6 {[%clk 0:02:42]} 12. b4 {[%clk 0:02:54]}  axb4 {[%clk 0:02:41]} 13. axb4 {[%clk 0:02:54]}  h5 {[%clk 0:02:37]} 14. Nd5 {[%clk 0:02:45]}  Nxd5 {[%clk 0:02:30]} 15. cxd5 {[%clk 0:02:45]}  Ng5 {[%clk 0:02:30]} 16. h4 {[%clk 0:02:44]}  Nh7 {[%clk 0:02:26]} 17. Bb2 {[%clk 0:02:41]}  Bg4 {[%clk 0:02:25]} 18. Qc2 {[%clk 0:02:41]}  g5 {[%clk 0:02:23]} 19. hxg5 {[%clk 0:02:36]}  Nxg5 {[%clk 0:02:23]} 20. f4 {[%clk 0:02:32]}  Nh3+ {[%clk 0:02:05]} 21. Kh2 {[%clk 0:02:28]}  exf4 {[%clk 0:02:05]} 22. Bxg7 {[%clk 0:02:18]}  fxg3+ {[%clk 0:02:02]} 23. Kxg3 {[%clk 0:02:16]}  Rxe3+ {[%clk 0:02:01]} 24. Nf3 {[%clk 0:02:11]}  Qg5 {[%clk 0:01:44]} 25. Bh6 {[%clk 0:01:56]}  Qe5+ {[%clk 0:01:14]} 26. Kh4 {[%clk 0:01:51]}  Qe7+ {[%clk 0:01:11]} 27. Bg5 {[%clk 0:01:45]}  Nxg5 {[%clk 0:01:04]} 28. Nxg5 {[%clk 0:01:46]}  Re5 {[%clk 0:00:42]} 29. Qd2 {[%clk 0:01:31]}  Ra2 {[%clk 0:00:38]} 30. Qxa2 {[%clk 0:01:27]}  Qxg5+ {[%clk 0:00:36]} 31. Kg3 {[%clk 0:01:27]}  Re2 {[%clk 0:00:18]} 32. Rf2 {[%clk 0:00:47]}  Qe5+ {[%clk 0:00:15]} 33. Kh4 {[%clk 0:00:44]}  Qh2+ {[%clk 0:00:15]} 34. Kg5 {[%clk 0:00:44]}  f6+ {[%clk 0:00:14]} 35. Kg6 {[%clk 0:00:36]}  Bf5+ {[%clk 0:00:13]} 36. Kxf5 {[%clk 0:00:35]}  Qe5+ {[%clk 0:00:12]} 37. Kg6 {[%clk 0:00:33]}  Qg5# {[%clk 0:00:13]} 0-1


[Site "https://www.chess.com"]

[Event "Titled Tuesday Blitz June 1 2021"]
[White "Rakotomaharo, Fy Antenaina"]
[Black "Berend, Elvira"]
[WhiteFideId "13100050"]
[BlackFideId "4000510"]
[WhiteElo "2378"]
[BlackElo "2340"]
[Result "0-1"]
[Round "10"]
[TimeControl "180+1"]
[Date "2021.06.01"]
[WhiteClock "0:00:06"]
[BlackClock "0:00:21"]

1. e4 {[%clk 0:03:00]}  e5 {[%clk 0:02:58]} 2. Nf3 {[%clk 0:03:01]}  Nc6 {[%clk 0:02:58]} 3. Bb5 {[%clk 0:03:01]}  Nf6 {[%clk 0:02:57]} 4. O-O {[%clk 0:02:47]}  Nxe4 {[%clk 0:02:56]} 5. d4 {[%clk 0:02:48]}  Nd6 {[%clk 0:02:55]} 6. dxe5 {[%clk 0:02:48]}  Nxb5 {[%clk 0:02:52]} 7. a4 {[%clk 0:02:49]}  Nbd4 {[%clk 0:02:51]} 8. Nxd4 {[%clk 0:02:49]}  Nxd4 {[%clk 0:02:51]} 9. Qxd4 {[%clk 0:02:49]}  d5 {[%clk 0:02:51]} 10. Nc3 {[%clk 0:02:47]}  c6 {[%clk 0:02:47]} 11. a5 {[%clk 0:02:47]}  Be7 {[%clk 0:02:40]} 12. Be3 {[%clk 0:02:30]}  O-O {[%clk 0:02:33]} 13. Qd3 {[%clk 0:02:25]}  g6 {[%clk 0:02:26]} 14. Ne2 {[%clk 0:02:21]}  Bf5 {[%clk 0:02:26]} 15. Qd2 {[%clk 0:02:18]}  Re8 {[%clk 0:02:18]} 16. Ng3 {[%clk 0:02:15]}  Qd7 {[%clk 0:02:17]} 17. Rae1 {[%clk 0:02:11]}  Bf8 {[%clk 0:02:06]} 18. Bh6 {[%clk 0:02:06]}  Rad8 {[%clk 0:01:48]} 19. Bxf8 {[%clk 0:02:02]}  Rxf8 {[%clk 0:01:48]} 20. Qg5 {[%clk 0:01:53]}  Qe6 {[%clk 0:01:20]} 21. Nxf5 {[%clk 0:01:40]}  Qxf5 {[%clk 0:01:19]} 22. Qxf5 {[%clk 0:01:40]}  gxf5 {[%clk 0:01:20]} 23. Re3 {[%clk 0:01:40]}  Rfe8 {[%clk 0:01:13]} 24. Rfe1 {[%clk 0:01:39]}  d4 {[%clk 0:01:12]} 25. Rf3 {[%clk 0:01:37]}  Rd5 {[%clk 0:01:11]} 26. Rxf5 {[%clk 0:01:35]}  Rxa5 {[%clk 0:01:10]} 27. h4 {[%clk 0:01:30]}  h6 {[%clk 0:01:03]} 28. Re4 {[%clk 0:01:28]}  Rd5 {[%clk 0:01:02]} 29. Rg4+ {[%clk 0:01:06]}  Kf8 {[%clk 0:01:01]} 30. f4 {[%clk 0:01:07]}  c5 {[%clk 0:00:57]} 31. Kf2 {[%clk 0:00:41]}  c4 {[%clk 0:00:56]} 32. Ke2 {[%clk 0:00:42]}  d3+ {[%clk 0:00:56]} 33. Kd2 {[%clk 0:00:42]}  dxc2+ {[%clk 0:00:51]} 34. Kxc2 {[%clk 0:00:42]}  b5 {[%clk 0:00:51]} 35. Rf6 {[%clk 0:00:38]}  Red8 {[%clk 0:00:48]} 36. Rxh6 {[%clk 0:00:36]}  Rd2+ {[%clk 0:00:45]} 37. Kc3 {[%clk 0:00:35]}  R8d3+ {[%clk 0:00:40]} 38. Kb4 {[%clk 0:00:35]}  Rxb2+ {[%clk 0:00:38]} 39. Kc5 {[%clk 0:00:32]}  c3 {[%clk 0:00:33]} 40. Rh8+ {[%clk 0:00:06]}  Ke7 {[%clk 0:00:32]} 41. Rgg8 {[%clk 0:00:07]}  c2 {[%clk 0:00:23]} 42. Re8+ {[%clk 0:00:07]}  Kd7 {[%clk 0:00:23]} 43. Rd8+ {[%clk 0:00:08]}  Ke6 {[%clk 0:00:23]} 44. Rxd3 {[%clk 0:00:05]}  c1=Q+ {[%clk 0:00:23]} 45. Kd4 {[%clk 0:00:06]}  Rb4# {[%clk 0:00:21]} 0-1


[Site "https://www.chess.com"]

[Event "Titled Tuesday Blitz June 1 2021"]
[White "Sadovsky, Artem"]
[Black "Melian, Juan Sebastian"]
[WhiteFideId "4155840"]
[BlackFideId "3706575"]
[WhiteElo "2476"]
[BlackElo "1563"]
[Result "1-0"]
[Round "10"]
[TimeControl "180+1"]
[Date "2021.06.01"]
[WhiteClock "0:00:57"]
[BlackClock "0:00:01"]

1. Nf3 {[%clk 0:03:00]}  d5 {[%clk 0:02:59]} 2. g3 {[%clk 0:03:01]}  c6 {[%clk 0:02:57]} 3. Bg2 {[%clk 0:03:01]}  Nf6 {[%clk 0:02:58]} 4. O-O {[%clk 0:03:01]}  Bg4 {[%clk 0:02:59]} 5. b3 {[%clk 0:02:59]}  e6 {[%clk 0:02:59]} 6. Bb2 {[%clk 0:03:00]}  Nbd7 {[%clk 0:03:00]} 7. d3 {[%clk 0:03:00]}  Bd6 {[%clk 0:03:00]} 8. Nbd2 {[%clk 0:03:00]}  Qe7 {[%clk 0:03:01]} 9. e4 {[%clk 0:03:00]}  dxe4 {[%clk 0:02:57]} 10. dxe4 {[%clk 0:02:59]}  e5 {[%clk 0:02:56]} 11. Nc4 {[%clk 0:03:00]}  Bc7 {[%clk 0:02:56]} 12. Ba3 {[%clk 0:02:59]}  c5 {[%clk 0:02:52]} 13. Ne3 {[%clk 0:02:59]}  Be6 {[%clk 0:02:48]} 14. Nd5 {[%clk 0:02:57]}  Bxd5 {[%clk 0:02:48]} 15. exd5 {[%clk 0:02:56]}  Bd6 {[%clk 0:02:48]} 16. c4 {[%clk 0:02:51]}  O-O {[%clk 0:02:48]} 17. Re1 {[%clk 0:02:50]}  Ne8 {[%clk 0:02:46]} 18. Bb2 {[%clk 0:02:42]}  f5 {[%clk 0:02:45]} 19. Nxe5 {[%clk 0:02:32]}  Bxe5 {[%clk 0:02:22]} 20. f4 {[%clk 0:02:32]}  Nd6 {[%clk 0:01:29]} 21. fxe5 {[%clk 0:02:30]}  Ne4 {[%clk 0:01:29]} 22. Bxe4 {[%clk 0:02:25]}  fxe4 {[%clk 0:01:30]} 23. Rxe4 {[%clk 0:02:22]}  Qg5 {[%clk 0:01:27]} 24. Qe2 {[%clk 0:02:17]}  Rae8 {[%clk 0:01:24]} 25. Rg4 {[%clk 0:02:06]}  Qh6 {[%clk 0:01:14]} 26. e6 {[%clk 0:02:03]}  Nf6 {[%clk 0:01:14]} 27. Rf4 {[%clk 0:01:45]}  Qg6 {[%clk 0:00:57]} 28. Raf1 {[%clk 0:01:45]}  Nh5 {[%clk 0:00:49]} 29. Rxf8+ {[%clk 0:01:42]}  Rxf8 {[%clk 0:00:50]} 30. Rxf8+ {[%clk 0:01:39]}  Kxf8 {[%clk 0:00:51]} 31. d6 {[%clk 0:01:23]}  Ke8 {[%clk 0:00:38]} 32. e7 {[%clk 0:01:10]}  Nf6 {[%clk 0:00:17]} 33. Bxf6 {[%clk 0:01:06]}  gxf6 {[%clk 0:00:18]} 34. Qe6 {[%clk 0:01:00]}  Qb1+ {[%clk 0:00:17]} 35. Kg2 {[%clk 0:01:00]}  Qd3 {[%clk 0:00:01]} 36. Qg8+ {[%clk 0:00:57]} 1-0


[Site "https://www.chess.com"]

[Event "Titled Tuesday Blitz June 1 2021"]
[White "Samsonkin, Artiom"]
[Black "Soto Vega, Jorge"]
[WhiteFideId "13503111"]
[BlackFideId "3800580"]
[WhiteElo "2513"]
[BlackElo "2259"]
[Result "1-0"]
[Round "10"]
[TimeControl "180+1"]
[Date "2021.06.01"]
[WhiteClock "0:00:34"]
[BlackClock "0:00:07"]

1. e4 {[%clk 0:03:00]}  d5 {[%clk 0:02:57]} 2. exd5 {[%clk 0:03:00]}  Qxd5 {[%clk 0:02:57]} 3. Nf3 {[%clk 0:03:01]}  Nf6 {[%clk 0:02:57]} 4. Be2 {[%clk 0:03:02]}  c6 {[%clk 0:02:56]} 5. O-O {[%clk 0:03:03]}  Bg4 {[%clk 0:02:56]} 6. h3 {[%clk 0:03:02]}  Bh5 {[%clk 0:02:56]} 7. c4 {[%clk 0:02:56]}  Qa5 {[%clk 0:02:55]} 8. Nc3 {[%clk 0:02:48]}  Nbd7 {[%clk 0:02:54]} 9. d4 {[%clk 0:02:48]}  e6 {[%clk 0:02:54]} 10. Qb3 {[%clk 0:02:35]}  Qb6 {[%clk 0:02:40]} 11. Be3 {[%clk 0:02:26]}  Qxb3 {[%clk 0:02:09]} 12. axb3 {[%clk 0:02:27]}  a6 {[%clk 0:02:08]} 13. g4 {[%clk 0:02:12]}  Bg6 {[%clk 0:02:07]} 14. Nd2 {[%clk 0:02:06]}  Be7 {[%clk 0:01:43]} 15. f4 {[%clk 0:02:05]}  O-O {[%clk 0:01:35]} 16. d5 {[%clk 0:01:53]}  cxd5 {[%clk 0:01:23]} 17. cxd5 {[%clk 0:01:53]}  Bc5 {[%clk 0:01:22]} 18. Bxc5 {[%clk 0:01:50]}  Nxc5 {[%clk 0:01:22]} 19. b4 {[%clk 0:01:47]}  Nce4 {[%clk 0:01:05]} 20. Ndxe4 {[%clk 0:01:43]}  Nxe4 {[%clk 0:01:05]} 21. f5 {[%clk 0:01:21]}  exf5 {[%clk 0:00:51]} 22. gxf5 {[%clk 0:01:19]}  Ng3 {[%clk 0:00:52]} 23. fxg6 {[%clk 0:01:17]}  Nxf1 {[%clk 0:00:51]} 24. gxh7+ {[%clk 0:01:13]}  Kxh7 {[%clk 0:00:48]} 25. Rxf1 {[%clk 0:01:14]}  Rae8 {[%clk 0:00:45]} 26. Kf2 {[%clk 0:01:08]}  Re5 {[%clk 0:00:40]} 27. Rd1 {[%clk 0:01:05]}  Rd8 {[%clk 0:00:39]} 28. Bf3 {[%clk 0:00:59]}  Rd6 {[%clk 0:00:38]} 29. Ne4 {[%clk 0:00:57]}  Rb6 {[%clk 0:00:25]} 30. Nc5 {[%clk 0:00:55]}  Re8 {[%clk 0:00:12]} 31. d6 {[%clk 0:00:49]}  Rd8 {[%clk 0:00:09]} 32. d7 {[%clk 0:00:45]}  Rxb4 {[%clk 0:00:07]} 33. Nxb7 {[%clk 0:00:38]}  Rxb2+ {[%clk 0:00:07]} 34. Kg3 {[%clk 0:00:38]}  Rxb7 {[%clk 0:00:08]} 35. Bxb7 {[%clk 0:00:36]}  Kg6 {[%clk 0:00:09]} 36. Bc6 {[%clk 0:00:35]}  f6 {[%clk 0:00:07]} 37. Re1 {[%clk 0:00:34]} 1-0


[Site "https://www.chess.com"]